fUST/lending_fUST_20250519
["ID","MTS","AMOUNT","RATE_DAILY","PERIOD"]
[361641402,1747657851584,-430.0,0.00024246,4]
[361641403,1747657851593,-430.0,0.00024246,4]
[361641404,1747657851603,-310.0,0.00024246,4]
[361641405,1747657851612,-1388.08,0.00024246,4]
[361641406,1747657851621,-1260.08,0.00024246,4]
[361641407,1747657851630,-430.0,0.00024246,4]
[361641408,1747657851642,-2996.16,0.00024246,4]
[361641409,1747657851651,-430.0,0.00024246,4]
[361641410,1747657851661,-1239.9,0.00024246,4]
[361641411,1747657851670,-430.0,0.00024246,4]
[361641412,1747657851679,-1007.45,0.00024246,4]
[361641413,1747657851688,-430.0,0.00024246,4]
[361641414,1747657851698,-893.23,0.00024246,4]
[361641415,1747657851707,-430.0,0.00024246,4]
[361641416,1747657851716,-430.0,0.00024246,4]
[361641417,1747657851725,-1381.85,0.00024246,4]
[361641418,1747657851734,-430.0,0.00024246,4]
[361641419,1747657851744,-430.0,0.00024246,4]
[361641420,1747657851754,-430.0,0.00024246,4]
[361641421,1747657851765,-430.0,0.00024246,4]
[361641422,1747657851775,-4863.71,0.00024246,4]
[361641423,1747657851786,-529.6,0.00024246,4]
[361641424,1747657851796,-430.0,0.00024246,4]
[361641425,1747657851806,-533.90782298,0.00024246,4]
[361641426,1747657851815,-430.0,0.00024246,4]
[361641427,1747657851825,-430.0,0.00024246,4]
[361641428,1747657851834,-310.0,0.00024246,4]
[361641429,1747657851844,-2199.85,0.00024246,4]
[361641430,1747657851852,-822.57,0.00024246,4]
[361641431,1747657851862,-3954.19,0.00024246,4]
[361641432,1747657851871,-430.0,0.00024246,4]
[361641433,1747657851880,-430.0,0.00024246,4]
[361641434,1747657851891,-570.49,0.00024246,4]
[361641435,1747657851900,-430.0,0.00024246,4]
[361641436,1747657851910,-310.0,0.00024246,4]
[361641437,1747657851919,-392.45,0.00024246,4]
[361641438,1747657851928,-1161.2,0.00024246,4]
[361641439,1747657851938,-500.0,0.00024246,4]
[361641440,1747657851947,-199.937283,0.00024246,7]
[361641441,1747657851956,-563.24,0.00024246,4]
[361641442,1747657851966,-5000.0,0.00024246,4]
[361641443,1747657852057,-430.0,0.00024246,4]
[361641444,1747657852067,-430.0,0.00024246,4]
[361641445,1747657852076,-3293.69,0.00024246,4]
[361641446,1747657852086,-334.63,0.00024246,4]
[361641447,1747657852096,-430.0,0.00024246,4]
[361641448,1747657852105,-430.0,0.00024246,4]
[361641449,1747657852114,-693.59,0.00024246,4]
[361641450,1747657852123,-430.0,0.00024246,4]
[361641451,1747657852133,-430.0,0.00024246,4]
[361641452,1747657852145,-430.0,0.00024246,4]
[361641453,1747657852154,-430.0,0.00024246,4]
[361641454,1747657852164,-430.0,0.00024246,4]
[361641455,1747657852173,-430.0,0.00024246,4]
[361641456,1747657852182,-430.0,0.00024246,4]
[361641457,1747657852192,-310.0,0.00024246,4]
[361641458,1747657852202,-430.0,0.00024246,4]
[361641459,1747657852212,-556.94978467,0.00024246,4]
[361641460,1747657852222,-151.0,0.00024246,7]
[361641461,1747657852232,-337.51400491,0.00024246,4]
[361641462,1747657852242,-430.0,0.00024246,4]
[361641463,1747657852251,-430.0,0.00024246,4]
[361641464,1747657852261,-430.0,0.00024246,4]
[361641465,1747657852270,-430.0,0.00024246,4]
[361641466,1747657852279,-430.0,0.00024246,4]
[361641467,1747657852289,-430.0,0.00024246,4]
[361641468,1747657852298,-430.0,0.00024246,4]
[361641469,1747657852308,-430.0,0.00024246,4]
[361641470,1747657852317,-441.58,0.00024246,4]
[361641471,1747657852327,-1073.01,0.00024246,4]
[361641472,1747657852336,-430.0,0.00024246,4]
[361641473,1747657852346,-692.46,0.00024246,4]
[361641474,1747657852355,-430.0,0.00024246,4]
[361641475,1747657852364,-430.0,0.00024246,4]
[361641476,1747657852373,-1021.37,0.00024246,4]
[361641477,1747657852383,-779.47,0.00024246,4]
[361641478,1747657852395,-430.0,0.00024246,4]
[361641479,1747657852405,-2024.61,0.00024246,4]
[361641480,1747657852414,-430.0,0.00024246,4]
[361641481,1747657852423,-430.0,0.00024246,4]
[361641482,1747657852433,-430.0,0.00024246,4]
[361641483,1747657852442,-648.43,0.00024246,4]
[361641484,1747657852452,-814.03,0.00024246,4]
[361641485,1747657852464,-1561.33,0.00024246,4]
[361641486,1747657852474,-758.91,0.00024246,4]
[361641487,1747657852483,-430.0,0.00024246,4]
[361641488,1747657852492,-430.0,0.00024246,4]
[361641489,1747657852502,-893.03,0.00024246,4]
[361641490,1747657852513,-574.1,0.00024246,4]
[361641491,1747657852522,-430.0,0.00024246,4]
[361641492,1747657852531,-430.0,0.00024246,4]
[361641493,1747657852542,-430.0,0.00024246,4]
[361641494,1747657852551,-430.0,0.00024246,4]
[361641495,1747657852560,-585.13,0.00024246,4]
[361641496,1747657852570,-1478.85,0.00024246,4]
[361641497,1747657852579,-430.0,0.00024246,4]
[361641498,1747657852588,-430.0,0.00024246,4]
[361641499,1747657852597,-430.0,0.00024246,4]
[361641500,1747657852607,-525.82,0.00024246,4]
[361641501,1747657852616,-151.0,0.00024246,7]
[361641502,1747657852625,-669.24,0.00024246,4]
[361641503,1747657852634,-430.0,0.00024246,4]
[361641504,1747657852645,-151.0,0.00024246,7]
[361641505,1747657852655,-941.78,0.00024246,4]
[361641506,1747657852665,-430.0,0.00024246,4]
[361641507,1747657852674,-430.0,0.00024246,4]
[361641508,1747657852684,-1208.26,0.00024246,4]
[361641509,1747657852693,-430.0,0.00024246,4]
[361641510,1747657852703,-430.0,0.00024246,4]
[361641511,1747657852712,-443.3,0.00024246,4]
[361641512,1747657852721,-439.17,0.00024246,4]
[361641513,1747657852734,-430.0,0.00024246,4]
[361641514,1747657852753,-430.0,0.00024246,4]
[361641515,1747657852767,-579.92132107,0.00024324,2]
[361641516,1747657852783,-18448.19,0.00024324,7]
[361641517,1747657852800,-5501.5,0.00024324,7]
[361641518,1747657852817,-430.0,0.00024383,4]
[361641519,1747657852834,-430.0,0.00024383,4]
[361641520,1747657852849,-430.0,0.00024383,4]
[361641521,1747657852864,-343.28,0.00024383,4]
[361641522,1747657852880,-430.0,0.00024383,4]
[361641523,1747657852895,-430.0,0.00024383,4]
[361641524,1747657852908,-466.04,0.00024383,4]
[361641525,1747657852924,-430.0,0.00024383,4]
[361641526,1747657852941,-430.0,0.00024383,4]
[361641527,1747657852958,-430.0,0.00024383,4]
[361641528,1747657852973,-280.0,0.00024383,4]
[361641529,1747657852985,-430.0,0.00024383,4]
[361641530,1747657853002,-430.0,0.00024383,4]
[361641531,1747657853017,-430.0,0.00024383,4]
[361641532,1747657853031,-430.0,0.00024383,4]
[361641533,1747657853046,-430.0,0.00024383,4]
[361641534,1747657853058,-270.0,0.00024383,4]
[361641535,1747657853073,-550.0,0.00024383,4]
[361641536,1747657853086,-430.0,0.00024383,4]
[361641537,1747657853100,-430.0,0.00024383,4]
[361641538,1747657853114,-430.0,0.00024383,4]
[361641539,1747657853128,-430.0,0.00024383,4]
[361641540,1747657853143,-430.0,0.00024383,4]
[361641541,1747657853156,-430.0,0.00024383,4]
[361641542,1747657853170,-430.0,0.00024383,4]
[361641543,1747657853184,-430.0,0.00024383,4]
[361641544,1747657853198,-168.35164962,0.00024383,4]
[361641545,1747657853211,-430.0,0.00024383,4]
[361641546,1747657853224,-430.0,0.00024383,4]
[361641547,1747657853237,-430.0,0.00024383,4]
[361641548,1747657853251,-381.24,0.00024383,4]
[361641549,1747657853264,-430.0,0.00024383,4]
[361641550,1747657853277,-430.0,0.00024383,4]
[361641551,1747657853291,-430.0,0.00024383,4]
[361641552,1747657853304,-245.64,0.00024383,4]
[361641553,1747657853318,-428.78,0.00024383,4]
[361641554,1747657853331,-430.0,0.00024383,4]
[361641555,1747657853345,-430.0,0.00024383,4]
[361641556,1747657853360,-451.83,0.00024383,4]
[361641557,1747657853373,-430.0,0.00024383,4]
[361641558,1747657853386,-430.0,0.00024383,4]
[361641559,1747657853400,-430.0,0.00024383,4]
[361641560,1747657853413,-251.01915026,0.00024383,4]
[361641561,1747657853427,-430.0,0.00024383,4]
[361641562,1747657853441,-430.0,0.00024383,4]
[361641563,1747657853455,-430.0,0.00024383,4]
[361641564,1747657853469,-430.0,0.00024383,4]
[361641565,1747657853482,-430.0,0.00024383,4]
[361641566,1747657853496,-430.0,0.00024383,4]
[361641567,1747657853510,-430.0,0.00024383,4]
[361641568,1747657853524,-430.0,0.00024383,4]
[361641569,1747657853538,-885.11,0.00024383,4]
[361641570,1747657853551,-430.0,0.00024383,4]
[361641571,1747657853564,-430.0,0.00024383,4]
[361641572,1747657853578,-430.0,0.00024383,4]
[361641573,1747657853591,-430.0,0.00024383,4]
[361641574,1747657853605,-430.0,0.00024383,4]
[361641575,1747657853617,-430.0,0.00024383,4]
[361641576,1747657853631,-443.01,0.00024383,4]
[361641577,1747657853649,-695.21,0.00024383,4]
[361641578,1747657853663,-430.0,0.00024383,4]
[361641579,1747657853672,-340.69,0.00024383,4]
[361641580,1747657853682,-430.0,0.00024383,4]
[361641581,1747657853691,-430.0,0.00024383,4]
[361641582,1747657853700,-430.0,0.00024383,4]
[361641583,1747657853709,-430.0,0.00024383,4]
[361641584,1747657853866,-430.0,0.00024383,4]
[361641585,1747657853876,-430.0,0.00024383,4]
[361641586,1747657853886,-156.43912019,0.00024383,4]
[361641587,1747657853898,-430.0,0.00024383,4]
[361641588,1747657853908,-544.9,0.00024383,4]
[361641589,1747657853917,-430.0,0.00024383,4]
[361641590,1747657853926,-430.0,0.00024383,4]
[361641591,1747657853935,-430.0,0.00024383,4]
[361641592,1747657853944,-430.0,0.00024383,4]
[361641593,1747657853953,-396.60874224,0.00024383,4]
[361641594,1747657853962,-325.95932143,0.00024383,4]
[361641595,1747657853971,-430.0,0.00024383,4]
[361641596,1747657853980,-430.0,0.00024383,4]
[361641597,1747657853990,-430.0,0.00024383,4]
[361641598,1747657853999,-280.0,0.00024383,4]
[361641599,1747657854008,-430.0,0.00024383,4]
[361641600,1747657854018,-430.0,0.00024383,4]
[361641601,1747657854027,-430.0,0.00024383,4]
[361641602,1747657854036,-157.29330944,0.00024383,4]
[361641603,1747657854046,-430.0,0.00024383,4]
[361641604,1747657854055,-430.0,0.00024383,4]
[361641605,1747657854064,-430.0,0.00024383,4]
[361641606,1747657854074,-583.22,0.00024383,4]
[361641607,1747657854083,-430.0,0.00024383,4]
[361641608,1747657854093,-430.0,0.00024383,2]
[361641609,1747657854103,-479.01534695,0.00024383,4]
[361641610,1747657854113,-908.36,0.00024383,4]
[361641611,1747657854122,-430.0,0.00024383,4]
[361641612,1747657854131,-430.0,0.00024383,4]
[361641613,1747657854143,-1697.44,0.00024383,4]
[361641614,1747657854152,-383.22447969,0.00024383,4]
[361641615,1747657854162,-430.0,0.00024383,4]
[361641616,1747657854171,-430.0,0.00024383,4]
[361641617,1747657854180,-453.34275813,0.00024383,4]
[361641618,1747657854190,-430.0,0.00024383,4]
[361641619,1747657854199,-382.77394375,0.00024383,4]
[361641620,1747657854208,-430.0,0.00024383,4]
[361641621,1747657854218,-430.0,0.00024383,4]
[361641622,1747657854227,-430.0,0.00024383,4]
[361641623,1747657854236,-486.32506872,0.00024383,4]
[361641624,1747657854245,-430.0,0.00024383,4]
[361641625,1747657854255,-485.75747863,0.00024383,4]
[361641626,1747657854264,-280.0,0.00024383,4]
[361641627,1747657854274,-151.0,0.00024383,7]
[361641628,1747657854283,-1166.52,0.00024383,4]
[361641629,1747657854293,-430.0,0.00024383,4]
[361641630,1747657854302,-430.0,0.00024383,4]
[361641631,1747657854311,-484.7468304,0.00024383,4]
[361641632,1747657854321,-430.0,0.00024383,4]
[361641633,1747657854330,-282.13405264,0.00024383,4]
[361641634,1747657854340,-1165.95,0.00024383,4]
[361641635,1747657854349,-430.0,0.00024383,4]
[361641636,1747657854359,-430.0,0.00024383,4]
[361641637,1747657854368,-447.28,0.00024383,4]
[361641638,1747657854377,-430.0,0.00024383,4]
[361641639,1747657854386,-430.0,0.00024383,4]
[361641640,1747657854398,-430.0,0.00024383,4]
[361641641,1747657854408,-446.94,0.00024383,4]
[361641642,1747657854417,-5427.77,0.00024383,4]
[361641643,1747657854425,-430.0,0.00024383,4]
[361641644,1747657854435,-397.04,0.00024383,4]
[361641645,1747657854444,-430.0,0.00024383,4]
[361641646,1747657854455,-430.0,0.00024383,4]
[361641647,1747657854469,-850.71,0.00024383,4]
[361641648,1747657854478,-430.0,0.00024383,4]
[361641649,1747657854488,-280.0,0.00024383,4]
[361641650,1747657854498,-430.0,0.00024383,4]
[361641651,1747657854509,-430.0,0.00024383,4]
[361641652,1747657854518,-430.0,0.00024383,4]
[361641653,1747657854528,-430.0,0.00024383,4]
[361641654,1747657854538,-579.08,0.00024383,4]
[361641655,1747657854547,-280.0,0.00024383,4]
[361641656,1747657854557,-430.0,0.00024383,4]
[361641657,1747657854566,-1388.08,0.00024383,4]
[361641658,1747657854576,-1260.08,0.00024383,4]
[361641659,1747657854585,-430.0,0.00024383,4]
[361641660,1747657854595,-2996.16,0.00024383,4]
[361641661,1747657854604,-430.0,0.00024383,4]
[361641662,1747657854613,-1239.9,0.00024383,4]
[361641663,1747657854623,-353.72,0.00024383,4]
[361641664,1747657854633,-1007.45,0.00024383,4]
[361641665,1747657854645,-430.0,0.00024383,4]
[361641666,1747657854654,-893.23,0.00024383,4]
[361641667,1747657854664,-430.0,0.00024383,4]
[361641668,1747657854673,-430.0,0.00024383,4]
[361641669,1747657854682,-1381.85,0.00024383,4]
[361641670,1747657854692,-430.0,0.00024383,4]
[361641671,1747657854702,-430.0,0.00024383,4]
[361641672,1747657854712,-430.0,0.00024383,4]
[361641673,1747657854723,-430.0,0.00024383,4]
[361641674,1747657854733,-4863.71,0.00024383,4]
[361641675,1747657854743,-529.6,0.00024383,4]
[361641676,1747657854753,-430.0,0.00024383,4]
[361641677,1747657854762,-430.0,0.00024383,4]
[361641678,1747657854771,-312.66794337,0.00024383,4]
[361641679,1747657854780,-2199.85,0.00024383,4]
[361641680,1747657854790,-822.57,0.00024383,4]
[361641681,1747657854800,-3954.19,0.00024383,4]
[361641682,1747657854810,-280.0,0.00024383,4]
[361641683,1747657854820,-430.0,0.00024383,4]
[361641684,1747657854829,-570.49,0.00024383,4]
[361641685,1747657854839,-430.0,0.00024383,4]
[361641686,1747657854848,-1161.2,0.00024383,4]
[361641687,1747657854858,-500.0,0.00024383,4]
[361641688,1747657854867,-563.24,0.00024383,4]
[361641689,1747657854876,-5000.0,0.00024383,4]
[361641690,1747657854886,-430.0,0.00024383,4]
[361641691,1747657854898,-430.0,0.00024383,4]
[361641692,1747657854908,-3293.69,0.00024383,4]
[361641693,1747657854918,-425.16,0.00024383,4]
[361641694,1747657854927,-430.0,0.00024383,4]
[361641695,1747657854937,-693.59,0.00024383,4]
[361641696,1747657854947,-430.0,0.00024383,4]
[361641697,1747657854957,-430.0,0.00024383,4]
[361641698,1747657854966,-430.0,0.00024383,4]
[361641699,1747657854976,-430.0,0.00024383,4]
[361641700,1747657854986,-430.0,0.00024383,4]
[361641701,1747657854995,-430.0,0.00024383,4]
[361641702,1747657855005,-449.81,0.00024383,4]
[361641703,1747657855014,-280.0,0.00024383,4]
[361641704,1747657855023,-151.0,0.00024383,7]
[361641705,1747657855033,-430.0,0.00024383,4]
[361641706,1747657855043,-283.38210597,0.00024383,4]
[361641707,1747657855052,-430.0,0.00024383,4]
[361641708,1747657855061,-430.0,0.00024383,4]
[361641709,1747657855071,-430.0,0.00024383,4]
[361641710,1747657855081,-430.0,0.00024383,4]
[361641711,1747657855091,-280.0,0.00024383,4]
[361641712,1747657855101,-430.0,0.00024383,4]
[361641713,1747657855110,-441.58,0.00024383,4]
[361641714,1747657855120,-1073.01,0.00024383,4]
[361641715,1747657855129,-430.0,0.00024383,4]
[361641716,1747657855141,-692.46,0.00024383,4]
[361641717,1747657855150,-192.7,0.00024383,4]
[361641718,1747657855160,-280.0,0.00024383,4]
[361641719,1747657855170,-1021.37,0.00024383,4]
[361641720,1747657855180,-779.47,0.00024383,4]
[361641721,1747657855190,-430.0,0.00024383,4]
[361641722,1747657855200,-2024.61,0.00024383,4]
[361641723,1747657855209,-557.7,0.00024383,4]
[361641724,1747657855219,-280.0,0.00024383,4]
[361641725,1747657855228,-430.0,0.00024383,4]
[361641726,1747657855239,-648.43,0.00024383,4]
[361641727,1747657855248,-814.03,0.00024383,4]
[361641728,1747657855258,-1561.33,0.00024383,4]
[361641729,1747657855268,-758.91,0.00024383,4]
[361641730,1747657855277,-430.0,0.00024383,4]
[361641731,1747657855287,-430.0,0.00024383,4]
[361641732,1747657855296,-893.03,0.00024383,4]
[361641733,1747657855306,-574.1,0.00024383,4]
[361641734,1747657855315,-430.0,0.00024383,4]
[361641735,1747657855325,-430.0,0.00024383,4]
[361641736,1747657855335,-320.89,0.00024383,4]
[361641737,1747657855345,-165.2923604,0.00024383,4]
[361641738,1747657855355,-585.13,0.00024383,4]
[361641739,1747657855365,-1478.85,0.00024383,4]
[361641740,1747657855374,-280.0,0.00024383,4]
[361641741,1747657855383,-430.0,0.00024383,4]
[361641742,1747657855394,-430.0,0.00024383,4]
[361641743,1747657855404,-525.82,0.00024383,4]
[361641744,1747657855415,-669.24,0.00024383,4]
[361641745,1747657855424,-280.0,0.00024383,4]
[361641746,1747657855434,-151.0,0.00024383,7]
[361641747,1747657855444,-941.78,0.00024383,4]
[361641748,1747657855454,-440.6,0.00024383,4]
[361641749,1747657855463,-430.0,0.00024383,4]
[361641750,1747657855473,-1208.26,0.00024383,4]
[361641751,1747657855483,-280.0,0.00024383,4]
[361641752,1747657855493,-254.35865275,0.00024383,4]
[361641753,1747657855503,-443.3,0.00024383,4]
[361641754,1747657855512,-439.17,0.00024383,4]
[361641755,1747657855521,-280.0,0.00024383,4]
[361641756,1747657855531,-430.0,0.00024383,4]
[361641757,1747657855541,-500.0,0.00024395,7]
[361641758,1747657855550,-152.0,0.00024477,3]
[361641759,1747657855559,-152.0,0.00024477,3]
[361641760,1747657855569,-152.0,0.00024477,3]
[361641761,1747657855578,-152.0,0.00024477,3]
[361641762,1747657855587,-152.0,0.00024477,3]
[361641763,1747657855597,-240.0,0.00024477,3]
[361641764,1747657855606,-5900.32484671,0.0002449,2]
[361641765,1747657855616,-500.0,0.00024495,7]
[361641766,1747657855626,-72691.598,0.000245,2]
[361641767,1747657855636,-1643.0,0.000245,14]
[361641768,1747657855647,-1463.38,0.000245,7]
[361641769,1747657855657,-1577.78,0.000245,7]
[361641770,1747657855666,-151.0,0.000245,7]
[361641771,1747657855676,-151.0,0.000245,7]
[361641772,1747657855686,-430.0,0.0002452,4]
[361641773,1747657855695,-430.0,0.0002452,4]
[361641774,1747657855704,-430.0,0.0002452,4]
[361641775,1747657855714,-151.0,0.0002452,7]
[361641776,1747657855724,-151.0,0.0002452,7]
[361641777,1747657855733,-430.0,0.0002452,4]
[361641778,1747657855743,-430.0,0.0002452,4]
[361641779,1747657855752,-430.0,0.0002452,4]
[361641780,1747657855762,-518.3,0.0002452,4]
[361641781,1747657855771,-430.0,0.0002452,4]
[361641782,1747657855781,-430.0,0.0002452,4]
[361641783,1747657855790,-430.0,0.0002452,4]
[361641784,1747657855800,-430.0,0.0002452,4]
[361641785,1747657855809,-151.0,0.0002452,7]
[361641786,1747657855819,-224.643634,0.0002452,7]
[361641787,1747657855829,-430.0,0.0002452,4]
[361641788,1747657855839,-430.0,0.0002452,4]
[361641789,1747657855849,-151.0,0.0002452,7]
[361641790,1747657855859,-430.0,0.0002452,4]
[361641791,1747657855868,-430.0,0.0002452,4]
[361641792,1747657855878,-155.44,0.0002452,4]
[361641793,1747657855888,-430.0,0.0002452,4]
[361641794,1747657855898,-430.0,0.0002452,4]
[361641795,1747657855908,-279.82,0.0002452,4]
[361641796,1747657855918,-490.0,0.0002452,4]
[361641797,1747657855928,-430.0,0.0002452,4]
[361641798,1747657855938,-430.0,0.0002452,4]
[361641799,1747657855948,-430.0,0.0002452,4]
[361641800,1747657855957,-430.0,0.0002452,4]
[361641801,1747657855967,-368.71,0.0002452,4]
[361641802,1747657855976,-250.0,0.0002452,4]
[361641803,1747657855986,-430.0,0.0002452,4]
[361641804,1747657855997,-430.0,0.0002452,4]
[361641805,1747657856007,-430.0,0.0002452,4]
[361641806,1747657856019,-451.83,0.0002452,4]
[361641807,1747657856029,-430.0,0.0002452,4]
[361641808,1747657856038,-430.0,0.0002452,4]
[361641809,1747657856048,-430.0,0.0002452,4]
[361641810,1747657856058,-430.0,0.0002452,4]
[361641811,1747657856067,-430.0,0.0002452,4]
[361641812,1747657856185,-430.0,0.0002452,4]
[361641813,1747657856196,-79.49690176,0.0002452,4]
[361641814,1747657856407,-350.50309824,0.0002452,4]
[361641815,1747657856417,-430.0,0.0002452,4]
[361641816,1747657856428,-430.0,0.0002452,4]
[361641817,1747657856438,-430.0,0.0002452,4]
[361641818,1747657856447,-55.51273099,0.0002452,4]
[361641819,1747657856463,-374.48726901,0.0002452,4]
[361641820,1747657856473,-885.11,0.0002452,4]
[361641821,1747657856482,-430.0,0.0002452,4]
[361641822,1747657856492,-430.0,0.0002452,4]
[361641823,1747657856502,-430.0,0.0002452,4]
[361641824,1747657856512,-430.0,0.0002452,4]
[361641825,1747657856522,-430.0,0.0002452,4]
[361641826,1747657856534,-430.0,0.0002452,4]
[361641827,1747657856544,-443.01,0.0002452,4]
[361641828,1747657856553,-695.21,0.0002452,4]
[361641829,1747657856563,-527.56516137,0.0002452,4]
[361641830,1747657856572,-250.0,0.0002452,4]
[361641831,1747657856582,-430.0,0.0002452,4]
[361641832,1747657856591,-430.0,0.0002452,4]
[361641833,1747657856601,-430.0,0.0002452,4]
[361641834,1747657856610,-430.0,0.0002452,4]
[361641835,1747657856620,-430.0,0.0002452,4]
[361641836,1747657856630,-430.0,0.0002452,4]
[361641837,1747657856639,-544.9,0.0002452,4]
[361641838,1747657856648,-430.0,0.0002452,4]
[361641839,1747657856658,-250.0,0.0002452,4]
[361641840,1747657856668,-430.0,0.0002452,4]
[361641841,1747657856677,-250.0,0.0002452,4]
[361641842,1747657856687,-430.0,0.0002452,4]
[361641843,1747657856696,-430.0,0.0002452,4]
[361641844,1747657856706,-430.0,0.0002452,4]
[361641845,1747657856715,-430.0,0.0002452,4]
[361641846,1747657856724,-430.0,0.0002452,4]
[361641847,1747657856734,-430.0,0.0002452,4]
[361641848,1747657856743,-430.0,0.0002452,4]
[361641849,1747657856752,-530.54,0.0002452,4]
[361641850,1747657856761,-430.0,0.0002452,4]
[361641851,1747657856770,-583.22,0.0002452,4]
[361641852,1747657856780,-430.0,0.0002452,4]
[361641853,1747657856789,-430.0,0.0002452,2]
[361641854,1747657856799,-908.36,0.0002452,4]
[361641855,1747657856808,-401.6623163,0.0002452,4]
[361641856,1747657856817,-421.27771892,0.0002452,4]
[361641857,1747657856827,-1697.44,0.0002452,4]
[361641858,1747657856836,-292.87,0.0002452,4]
[361641859,1747657856846,-491.91797129,0.0002452,4]
[361641860,1747657856855,-430.0,0.0002452,4]
[361641861,1747657856864,-430.0,0.0002452,4]
[361641862,1747657856875,-430.0,0.0002452,4]
[361641863,1747657856885,-430.0,0.0002452,4]
[361641864,1747657856896,-430.0,0.0002452,4]
[361641865,1747657856905,-196.246192,0.0002452,7]
[361641866,1747657856914,-1166.52,0.0002452,4]
[361641867,1747657856924,-430.0,0.0002452,4]
[361641868,1747657856934,-430.0,0.0002452,4]
[361641869,1747657856943,-250.0,0.0002452,4]
[361641870,1747657856953,-1165.95,0.0002452,4]
[361641871,1747657856963,-430.0,0.0002452,4]
[361641872,1747657856973,-430.0,0.0002452,4]
[361641873,1747657856983,-447.28,0.0002452,4]
[361641874,1747657856993,-430.0,0.0002452,4]
[361641875,1747657857004,-430.0,0.0002452,4]
[361641876,1747657857013,-549.44,0.0002452,4]
[361641877,1747657857023,-446.94,0.0002452,4]
[361641878,1747657857033,-5427.77,0.0002452,4]
[361641879,1747657857043,-430.0,0.0002452,4]
[361641880,1747657857054,-430.0,0.0002452,4]
[361641881,1747657857063,-190.09,0.0002452,4]
[361641882,1747657857072,-850.71,0.0002452,4]
[361641883,1747657857081,-430.0,0.0002452,4]
[361641884,1747657857091,-430.0,0.0002452,4]
[361641885,1747657857101,-430.0,0.0002452,4]
[361641886,1747657857110,-430.0,0.0002452,4]
[361641887,1747657857120,-430.0,0.0002452,4]
[361641888,1747657857130,-579.08,0.0002452,4]
[361641889,1747657857141,-430.0,0.0002452,4]
[361641890,1747657857150,-1388.08,0.0002452,4]
[361641891,1747657857160,-1260.08,0.0002452,4]
[361641892,1747657857169,-327.31,0.0002452,4]
[361641893,1747657857180,-2996.16,0.0002452,4]
[361641894,1747657857190,-430.0,0.0002452,4]
[361641895,1747657857199,-1239.9,0.0002452,4]
[361641896,1747657857209,-1007.45,0.0002452,4]
[361641897,1747657857218,-430.0,0.0002452,4]
[361641898,1747657857228,-893.23,0.0002452,4]
[361641899,1747657857237,-522.43,0.0002452,4]
[361641900,1747657857246,-430.0,0.0002452,4]
[361641901,1747657857256,-1381.85,0.0002452,4]